fUST/lending_fUST_20250701
["ID","MTS","AMOUNT","RATE_DAILY","PERIOD"]
[368721666,1751325042740,-151.0,0.0002195,2]
[368721668,1751325042749,-151.0,0.0002195,2]
[368721670,1751325042759,-151.0,0.0002195,2]
[368721672,1751325042768,-318.0,0.0002195,2]
[368721675,1751325042778,-318.0,0.0002195,2]
[368721676,1751325042787,-318.0,0.0002195,2]
[368721679,1751325042797,-318.0,0.0002195,2]
[368721681,1751325042807,-318.0,0.0002195,2]
[368721684,1751325042817,-318.0,0.0002195,2]
[368721685,1751325042826,-318.0,0.0002195,2]
[368721687,1751325042835,-500.0,0.00021973,2]
[368721689,1751325042844,-501.58217862,0.00021973,2]
[368721691,1751325042854,-500.0,0.00021973,2]
[368721693,1751325042863,-500.0,0.00021973,2]
[368721696,1751325042873,-500.0,0.00021973,2]
[368721698,1751325042882,-500.0,0.00021973,2]
[368721699,1751325042891,-311.95562575,0.00021973,2]
[368721702,1751325042900,-500.0,0.00021973,2]
[368721704,1751325042910,-500.0,0.00021973,2]
[368721705,1751325042919,-372.50764745,0.00021973,2]
[368721707,1751325042929,-160.287742,0.00021984,7]
[368721709,1751325042939,-160.287744,0.00021984,7]
[368721711,1751325042948,-3688.65832339,0.00022,2]
[368721713,1751325042957,-500.0,0.00022,8]
[368721714,1751325042967,-500.0,0.00022,8]
[368721716,1751325042976,-10244.0,0.00022,15]
[368721718,1751325042986,-2811.08,0.00022,7]
[368721720,1751325042995,-14302.86,0.00022,7]
[368721722,1751325043005,-37863.91073517,0.00022,2]
[368721724,1751325043015,-266571.06192351,0.00022,5]
[368721738,1751325043136,-2305071.8749745,0.00022,5]
[368721759,1751325043358,-40720.10512827,0.00022,5]
[368721760,1751325043367,-73432.15155282,0.00022,7]
[368721762,1751325043380,-2542.6179842,0.00022,7]
[368721765,1751325043458,-460.0,0.0001911,2]
[368721766,1751325043468,-460.0,0.0002003,2]
[368721768,1751325043478,-460.0,0.00020304,2]
[368721769,1751325043487,-460.0,0.00020578,2]
[368721770,1751325043496,-951.22158817,0.0002058,2]
[368721771,1751325043599,-282.40841183,0.0002058,2]
[368721772,1751325043608,-460.0,0.00020852,2]
[368721773,1751325043618,-1233.63,0.00020854,2]
[368721774,1751325043740,-460.0,0.00021126,2]
[368721775,1751325043751,-1233.63,0.00021128,2]
[368721776,1751325043760,-460.0,0.000214,2]
[368721777,1751325043770,-1233.63,0.00021402,2]
[368721778,1751325043780,-460.0,0.00021674,2]
[368721779,1751325043789,-1233.63,0.00021676,2]
[368721780,1751325043798,-460.0,0.00021948,2]
[368721781,1751325043809,-1233.63,0.0002195,2]
[368721782,1751325043818,-18219.25024631,0.00022,7]
[368721783,1751325043830,-13884.35021667,0.00022,7]
[368721784,1751325043839,-40680.02928806,0.00022,2]
[368721785,1751325043851,-1201.61999995,0.00022,2]
[368721786,1751325043862,-1609.42739068,0.00022,2]
[368721787,1751325043873,-1264.75967926,0.00022,2]
[368721788,1751325043902,-1882.11901457,0.00022,2]
[368721789,1751325044077,-356.91331607,0.00022,2]
[368721790,1751325044089,-28442.54039147,0.00022,2]
[368721810,1751325046155,-460.0,0.0001921,2]
[368721812,1751325046169,-460.0,0.00019211,2]
[368721813,1751325046181,-460.0,0.00019273,2]
[368721814,1751325046191,-2985.23993023,0.00022,2]
[368721815,1751325046203,-8286.02101576,0.00022,2]
[368721816,1751325046216,-37189.13279106,0.00022,2]
[368721818,1751325046267,-460.0,0.00019547,2]
[368721820,1751325046277,-3775.25718289,0.00022,2]
[368721822,1751325046287,-1768.83,0.00022,2]
[368721824,1751325046297,-151.0,0.00022,4]
[368721826,1751325046307,-151.0,0.00022,4]
[368721828,1751325046317,-151.0,0.00022,3]
[368721829,1751325046327,-151.0,0.00022,3]
[368721830,1751325046337,-272.83701376,0.00022,3]
[368721831,1751325046347,-151.0,0.00022,3]
[368721832,1751325046356,-151.0,0.00022,3]
[368721834,1751325046366,-151.0,0.00022,3]
[368721836,1751325046376,-151.0,0.00022,3]
[368721838,1751325046386,-151.0,0.00022,3]
[368721839,1751325046396,-151.0,0.00022,3]
[368721840,1751325046406,-151.0,0.00022,3]
[368721841,1751325046416,-151.0,0.00022,3]
[368721843,1751325046425,-151.0,0.00022,3]
[368721844,1751325046435,-151.0,0.00022,3]
[368721846,1751325046445,-151.0,0.00022,3]
[368721848,1751325046455,-151.0,0.00022,3]
[368721849,1751325046464,-151.0,0.00022,3]
[368721850,1751325046478,-151.0,0.00022,3]
[368721851,1751325046488,-151.0,0.00022,3]
[368721852,1751325046498,-151.0,0.00022,3]
[368721853,1751325046508,-318.0,0.00022,3]
[368721854,1751325046517,-151.0,0.00022,3]
[368721855,1751325046527,-318.0,0.00022,3]
[368721856,1751325046538,-318.0,0.00022,3]
[368721857,1751325046548,-318.0,0.00022,3]
[368721858,1751325046558,-318.0,0.00022,3]
[368721859,1751325046568,-318.0,0.00022,3]
[368721860,1751325046578,-151.0,0.00022,3]
[368721861,1751325046588,-318.0,0.00022,3]
[368721862,1751325046600,-151.0,0.00022,3]
[368721863,1751325046610,-318.0,0.00022,3]
[368721864,1751325046619,-151.0,0.00022,3]
[368721865,1751325046630,-151.0,0.00022,3]
[368721866,1751325046639,-151.0,0.00022,3]
[368721867,1751325046649,-318.0,0.00022,3]
[368721868,1751325046658,-318.0,0.00022,3]
[368721869,1751325046669,-151.0,0.00022,3]
[368721870,1751325046679,-318.0,0.00022,3]
[368721871,1751325046689,-156.21624187,0.00022,3]
[368721872,1751325046698,-318.0,0.00022,3]
[368721873,1751325046708,-318.0,0.00022,3]
[368721874,1751325046717,-318.0,0.00022,3]
[368721875,1751325046727,-318.0,0.00022,3]
[368721876,1751325046737,-318.0,0.00022,3]
[368721877,1751325046746,-318.0,0.00022,3]
[368721878,1751325046756,-318.0,0.00022,3]
[368721879,1751325046766,-318.0,0.00022,3]
[368721880,1751325046776,-318.0,0.00022,3]
[368721881,1751325046785,-318.0,0.00022,3]
[368721882,1751325046795,-318.0,0.00022,3]
[368721883,1751325046804,-318.0,0.00022,3]
[368721884,1751325046814,-318.0,0.00022,3]
[368721885,1751325046823,-318.0,0.00022,3]
[368721886,1751325046833,-318.0,0.00022,3]
[368721887,1751325046843,-318.0,0.00022,3]
[368721888,1751325046852,-318.0,0.00022,3]
[368721889,1751325046862,-318.0,0.00022,3]
[368721890,1751325046872,-318.0,0.00022,3]
[368721891,1751325046881,-318.0,0.00022,3]
[368721892,1751325046891,-318.0,0.00022,3]
[368721893,1751325046902,-318.0,0.00022,3]
[368721894,1751325046912,-318.0,0.00022,3]
[368721895,1751325046923,-318.0,0.00022,3]
[368721896,1751325046933,-318.0,0.00022,3]
[368721897,1751325046943,-394.2605898,0.00022,3]
[368721898,1751325046953,-151.0,0.00022,8]
[368721899,1751325046962,-151.0,0.00022,6]
[368721900,1751325046972,-151.0,0.00022,7]
[368721901,1751325046982,-151.0,0.00022,7]
[368721902,1751325046992,-151.0,0.00022,7]
[368721903,1751325047002,-151.0,0.00022,7]
[368721904,1751325047013,-151.0,0.00022,7]
[368721905,1751325047024,-151.0,0.00022,7]
[368721906,1751325047034,-151.0,0.00022,7]
[368721907,1751325047044,-263.781513,0.00022,7]
[368721908,1751325047054,-245.206133,0.00022,7]
[368721909,1751325047064,-245.206133,0.00022,7]
[368721910,1751325047074,-151.0,0.00022,7]
[368721911,1751325047084,-151.0,0.00022,7]
[368721912,1751325047094,-151.0,0.00022,7]
[368721913,1751325047107,-151.0,0.00022,7]
[368721914,1751325047117,-151.0,0.00022,7]
[368721915,1751325047127,-301.795864,0.00022,7]
[368721916,1751325047137,-151.0,0.00022,7]
[368721917,1751325047148,-151.0,0.00022,7]
[368721918,1751325047158,-315.552748,0.00022,7]
[368721919,1751325047168,-315.552748,0.00022,7]
[368721920,1751325047178,-315.552748,0.00022,7]
[368721921,1751325047187,-290.72868103,0.00022,7]
[368721922,1751325047201,-24.82406697,0.00022,7]
[368721923,1751325047211,-6703.93039584,0.00022,3]
[368721924,1751325047223,-460.64002672,0.00022,3]
[368721927,1751325289502,641.4779972,0.00018009,2]
[368721930,1751325535240,328.37098,0.00013699,2]
[368721939,1751325942159,-199.20537925,0.0001819,2]
[368721940,1751325949089,-91.08162825,0.0001819,2]
[368721941,1751325949113,-210.32482813,0.00018726,2]
[368721942,1751325969219,24900.0,0.00017995,2]
[368721945,1751326007636,200.948073,0.00017995,2]
[368721947,1751326033150,-201.80612471,0.00018726,2]
[368721948,1751326040101,-574.18698731,0.00018726,2]
[368721949,1751326046097,-3648.26747276,0.00018726,2]
[368721950,1751326046119,-164.8153706,0.00018871,2]
[368721951,1751326046143,-164.8153706,0.00018886,2]
[368721952,1751326046166,-164.8153706,0.000189,2]
[368721953,1751326046187,-300.0,0.0001897,2]
[368721954,1751326046208,-300.0,0.00018971,2]
[368721955,1751326046230,-1200.0,0.00018971,2]
[368721956,1751326046251,-600.0,0.00018971,2]
[368721957,1751326046272,-460.0,0.00018972,2]
[368721958,1751326046293,-350.66636391,0.00018972,2]
[368721959,1751326046315,-153.56677366,0.00018972,2]
[368721960,1751326046338,-460.0,0.00018972,2]
[368721961,1751326046359,-460.0,0.00018972,2]
[368721962,1751326046380,-460.0,0.00018972,2]
[368721963,1751326046404,-460.0,0.00018972,2]
[368721964,1751326046425,-460.0,0.00018972,2]
[368721965,1751326046448,-440.26718962,0.00018972,2]
[368721966,1751326046470,-460.0,0.00018972,2]
[368721967,1751326046492,-460.0,0.00018972,2]
[368721968,1751326046514,-460.0,0.00018972,2]
[368721969,1751326046536,-460.0,0.00018972,2]
[368721970,1751326046560,-460.0,0.00018972,2]
[368721971,1751326046583,-460.0,0.00018972,2]
[368721972,1751326046607,-460.0,0.00018972,2]
[368721973,1751326046630,-460.0,0.00018972,2]
[368721974,1751326046655,-426.51976973,0.00018972,2]
[368721975,1751326049088,-33.48023027,0.00018972,2]
[368721976,1751326049112,-460.0,0.00018972,2]
[368721977,1751326049137,-500.0,0.00018972,2]
[368721978,1751326049160,-500.0,0.00018972,2]
[368721979,1751326049182,-500.0,0.00018972,2]
[368721980,1751326049204,-500.0,0.00018972,2]
[368721981,1751326049227,-500.0,0.00018972,2]
[368721982,1751326049249,-500.0,0.00018972,2]
[368721983,1751326049271,-500.0,0.00018972,2]
[368721984,1751326049294,-360.7056239,0.00018972,2]
[368721985,1751326073017,2504.29357283,0.00018,2]
[368721986,1751326117462,2456.5961884,0.00017,2]
[368721987,1751326123909,150.99999928,0.0002,120]
[368721988,1751326144415,500.0,0.0002499,60]
[368721992,1751326170159,-1822.70234676,0.00018911,2]
[368721993,1751326170182,-300.0,0.00018971,2]
[368721994,1751326170205,-139.2943761,0.00018972,2]
[368721995,1751326170226,-500.0,0.00018972,2]
[368721996,1751326170248,-477.65047128,0.00018972,2]
[368721997,1751326170271,-500.0,0.00018972,2]
[368721998,1751326170292,-500.0,0.00018972,2]
[368721999,1751326170314,-404.23183767,0.00018972,2]
[368722000,1751326170491,-544.70801176,0.00018972,2]
[368722001,1751326170516,-550.0,0.00018972,2]
[368722002,1751326170539,-500.0,0.00018972,2]
[368722003,1751326170561,-300.0,0.00018972,2]
[368722004,1751326170584,-500.0,0.00018972,2]
[368722005,1751326170606,-500.0,0.00018972,2]
[368722006,1751326170630,-500.0,0.00018972,2]
[368722007,1751326170652,-500.0,0.00018972,2]
[368722008,1751326170674,-500.0,0.00018972,2]
[368722009,1751326170695,-500.0,0.00018972,2]
[368722010,1751326170716,-460.0,0.00018972,2]
[368722011,1751326170738,-460.0,0.00018972,2]
[368722012,1751326170760,-500.0,0.00018972,2]
[368722013,1751326170782,-500.0,0.00018972,2]
[368722014,1751326170804,-173.36195527,0.00018972,2]
[368722015,1751326170826,-500.0,0.00018972,2]
[368722016,1751326170847,-500.0,0.00018972,2]
[368722017,1751326170867,-561.22879303,0.00018972,2]
[368722018,1751326170889,-500.0,0.00018972,2]
[368722019,1751326170910,-500.0,0.00018972,2]
[368722020,1751326170932,-500.0,0.00018972,2]
[368722021,1751326170954,-500.0,0.00018972,2]
[368722022,1751326170979,-501.04,0.00018972,2]
[368722023,1751326170999,-460.0,0.00018972,2]
[368722024,1751326171023,-656.0,0.00018972,2]
[368722025,1751326171045,-355.49577818,0.00018972,2]
[368722026,1751326171170,-1012.53422182,0.00018972,2]
[368722027,1751326171191,-460.0,0.00018972,2]
[368722028,1751326171211,-460.0,0.00018972,2]
[368722029,1751326171232,-460.0,0.00018972,2]
[368722030,1751326171253,-460.0,0.00018972,2]
[368722031,1751326171274,-460.0,0.00018972,2]
[368722032,1751326171298,-460.0,0.00018972,2]
[368722033,1751326171319,-460.0,0.00018972,2]
[368722034,1751326171342,-460.0,0.00018972,2]
[368722035,1751326171363,-407.86819657,0.00018972,2]
[368722036,1751326171385,-605.63,0.00018972,2]
[368722037,1751326171408,-460.0,0.00018972,2]
[368722038,1751326171431,-460.0,0.00018972,2]
[368722039,1751326171451,-460.0,0.00018972,2]
[368722040,1751326171472,-460.0,0.00018972,2]
[368722041,1751326171493,-460.0,0.00018972,2]
[368722042,1751326171515,-460.0,0.00018972,2]
[368722043,1751326171536,-460.0,0.00018972,2]
[368722044,1751326171556,-460.0,0.00018972,2]
[368722045,1751326171577,-460.0,0.00018972,2]
[368722046,1751326171599,-460.0,0.00018972,2]
[368722047,1751326171619,-460.0,0.00018972,2]
[368722048,1751326171642,-460.0,0.00018972,2]
[368722049,1751326171663,-460.0,0.00018972,2]
[368722050,1751326171684,-460.0,0.00018972,2]
[368722051,1751326171704,-460.0,0.00018972,2]
[368722052,1751326171725,-460.0,0.00018972,2]
[368722053,1751326171747,-513.11,0.00018972,2]
[368722054,1751326171767,-537.28,0.00018972,2]
[368722055,1751326171789,-460.0,0.00018972,2]
[368722056,1751326171812,-460.0,0.00018972,2]
[368722057,1751326171833,-1404.59408914,0.00018972,2]
[368722090,1751326232279,-719.215595,0.00018872,2]
[368722092,1751326232289,-151.68814421,0.000189,2]
[368722094,1751326232298,-300.0,0.00018971,2]
[368722096,1751326232308,-80.50520633,0.00018971,2]
[368722098,1751326232319,-379.49479367,0.00018971,2]
[368722100,1751326232329,-460.0,0.00018971,2]
[368722102,1751326232338,-460.0,0.00018971,2]
[368722104,1751326232347,-460.0,0.00018971,2]
[368722106,1751326232357,-460.0,0.00018971,2]
[368722108,1751326232366,-460.0,0.00018971,2]
[368722110,1751326232376,-460.0,0.00018971,2]
[368722112,1751326232385,-460.0,0.00018971,2]
[368722115,1751326232395,-460.0,0.00018971,2]
[368722116,1751326232404,-460.0,0.00018971,2]
[368722119,1751326232414,-432.87745657,0.00018971,2]
[368722127,1751326232454,-27.12254343,0.00018971,2]
[368722129,1751326232463,-460.25955034,0.00018971,2]
[368722131,1751326232473,-460.0,0.00018972,2]
[368722133,1751326232482,-460.0,0.00018972,2]
[368722135,1751326232492,-460.0,0.00018972,2]
[368722137,1751326232502,-460.0,0.00018972,2]
[368722139,1751326232511,-180.85551358,0.00018972,2]
[368722141,1751326232524,-279.14448642,0.00018972,2]
[368722143,1751326232534,-460.0,0.00018972,2]
[368722145,1751326232543,-304.70212859,0.00018972,2]
[368722147,1751326232552,-460.0,0.00018972,2]
[368722149,1751326232562,-460.0,0.00018972,2]
[368722151,1751326232571,-460.0,0.00018972,2]
[368722153,1751326232581,-460.0,0.00018972,2]
[368722155,1751326232590,-8.56659771,0.00018972,2]
[368722158,1751326232602,-451.43340229,0.00018972,2]
[368722159,1751326232611,-460.0,0.00018972,2]
[368722161,1751326232620,-1656.63050762,0.00018972,2]
[368722164,1751326232631,-21519.74907266,0.00018973,2]
[368722370,1751326245367,-150.0,0.000189,2]
[368722371,1751326245377,-460.0,0.00018972,2]
[368722372,1751326245387,-460.0,0.00018972,2]
[368722373,1751326245396,-460.0,0.00018972,2]
[368722374,1751326245406,-64.85929794,0.00018973,2]
[368722375,1751326245428,-3894.41640471,0.00018973,2]
[368722376,1751326245440,-2500.8274349,0.00018973,2]
[368722377,1751326245452,-1117.99064211,0.00018973,2]
[368722378,1751326245462,-358.53,0.00019,3]
[368722379,1751326245473,-179.27,0.00019,3]
[368722380,1751326245484,-302.63687509,0.00019,2]
[368722381,1751326245493,-537.82,0.00019,3]
[368722382,1751326245503,-1846.97763046,0.00019,2]
[368722383,1751326245520,-460.0,0.00019006,2]
[368722384,1751326245541,-460.0,0.00019006,2]
[368722385,1751326245557,-556.34,0.00019006,2]
[368722386,1751326245570,-460.0,0.00019006,2]
[368722387,1751326245588,-460.0,0.00019006,2]
[368722388,1751326245603,-460.0,0.00019006,2]
[368722389,1751326245620,-460.0,0.00019006,2]
[368722390,1751326245635,-460.0,0.00019006,2]
[368722391,1751326245650,-460.0,0.00019006,2]
[368722392,1751326245667,-460.0,0.00019006,2]
[368722393,1751326245681,-460.0,0.00019007,2]
[368722394,1751326245698,-411.67469656,0.00019007,2]
[368722395,1751326245713,-460.0,0.00019007,2]
[368722397,1751326245729,-460.0,0.00019007,2]
[368722399,1751326245743,-460.0,0.00019007,2]
[368722401,1751326245758,-460.0,0.00019007,2]
[368722402,1751326245769,-460.0,0.00019007,2]
[368722403,1751326245782,-460.0,0.00019007,2]
[368722404,1751326245795,-460.0,0.00019007,2]
[368722405,1751326245809,-522.99,0.00019007,2]
[368722406,1751326245825,-460.0,0.00019007,2]
[368722407,1751326245839,-460.0,0.00019007,2]
[368722408,1751326245855,-460.0,0.00019007,2]
[368722409,1751326245871,-460.0,0.00019007,2]
[368722410,1751326245885,-460.0,0.00019007,2]
[368722411,1751326245897,-460.0,0.00019007,2]
[368722412,1751326245908,-460.0,0.00019007,2]
[368722413,1751326245922,-460.0,0.00019007,2]
[368722414,1751326245939,-460.0,0.00019007,2]
[368722415,1751326245955,-460.0,0.00019007,2]
[368722416,1751326245967,-460.0,0.00019007,2]
[368722417,1751326245982,-460.0,0.00019007,2]
[368722418,1751326245995,-460.0,0.00019007,2]
[368722419,1751326246009,-460.0,0.00019007,2]
[368722420,1751326246021,-460.0,0.00019007,2]
[368722421,1751326246036,-460.0,0.00019007,2]
[368722422,1751326246050,-460.0,0.00019007,2]
[368722423,1751326246065,-460.0,0.00019007,2]
[368722424,1751326246078,-177.16847427,0.00019007,2]
[368722425,1751326246091,-460.0,0.00019007,2]
[368722426,1751326246104,-500.0,0.00019007,2]
[368722427,1751326246117,-460.0,0.00019007,2]
[368722428,1751326246130,-460.0,0.00019007,2]
[368722429,1751326246143,-460.0,0.00019007,2]
[368722430,1751326246155,-460.0,0.00019007,2]
[368722431,1751326246169,-460.0,0.00019007,2]
[368722432,1751326246182,-914.71,0.00019007,2]
[368722433,1751326246194,-460.0,0.00019007,2]
[368722434,1751326246207,-460.0,0.00019007,2]
[368722435,1751326246220,-460.0,0.00019007,2]
[368722436,1751326246232,-460.0,0.00019007,2]
[368722437,1751326246245,-460.0,0.00019007,2]
[368722438,1751326246258,-460.0,0.00019007,2]
[368722439,1751326246270,-460.0,0.00019007,2]
[368722440,1751326246284,-460.0,0.00019007,2]
[368722441,1751326246297,-259.67,0.00019007,2]
[368722442,1751326246309,-235.3,0.00019007,2]
[368722443,1751326246322,-500.0,0.00019007,2]
[368722444,1751326246335,-460.0,0.00019007,2]
[368722445,1751326246347,-460.0,0.00019007,2]
[368722446,1751326246360,-392.06,0.00019007,2]
[368722447,1751326246373,-460.0,0.00019007,2]
[368722448,1751326246385,-460.0,0.00019007,2]
[368722449,1751326246399,-463.18,0.00019007,2]
[368722450,1751326246411,-460.0,0.00019007,2]
[368722452,1751326246424,-460.0,0.00019007,2]
[368722456,1751326246452,-460.0,0.00019007,2]
[368722459,1751326246475,-460.0,0.00019007,2]
[368722462,1751326246491,-460.0,0.00019007,2]
[368722464,1751326246501,-460.0,0.00019007,2]
[368722466,1751326246511,-460.0,0.00019007,2]
[368722468,1751326246520,-460.0,0.00019007,2]
[368722470,1751326246530,-460.0,0.00019007,2]
[368722472,1751326246540,-546.55727129,0.00019007,2]
[368722474,1751326246550,-460.0,0.00019007,2]
[368722476,1751326246562,-460.0,0.00019007,2]
[368722478,1751326246572,-460.0,0.00019007,2]
[368722480,1751326246582,-460.0,0.00019007,2]
[368722482,1751326246592,-460.0,0.00019007,2]
[368722484,1751326246602,-460.0,0.00019007,2]
[368722486,1751326246612,-460.0,0.00019007,2]
[368722488,1751326246622,-460.0,0.00019007,2]
[368722490,1751326246632,-460.0,0.00019007,2]
[368722493,1751326246642,-460.0,0.00019007,2]
[368722494,1751326246651,-460.0,0.00019007,2]
[368722517,1751326246859,-150.3,0.00019007,2]
[368722520,1751326246885,-460.0,0.00019007,2]
[368722522,1751326246896,-460.0,0.00019007,2]
[368722524,1751326246905,-460.0,0.00019007,2]
[368722526,1751326246915,-460.0,0.00019007,2]
[368722528,1751326246926,-460.0,0.00019007,2]
[368722530,1751326246935,-460.0,0.00019007,2]
[368722533,1751326246945,-460.0,0.00019007,2]
[368722535,1751326246954,-460.0,0.00019007,2]
[368722536,1751326246963,-460.0,0.00019007,2]
[368722538,1751326246973,-460.0,0.00019007,2]
[368722541,1751326246989,-460.0,0.00019007,2]
[368722543,1751326246998,-460.0,0.00019007,2]
[368722545,1751326247008,-460.0,0.00019007,2]
[368722547,1751326247018,-460.0,0.00019007,2]
[368722549,1751326247028,-460.0,0.00019007,2]
[368722551,1751326247038,-460.0,0.00019007,2]
[368722553,1751326247049,-460.0,0.00019007,2]
[368722555,1751326247058,-460.0,0.00019007,2]
[368722556,1751326247068,-460.0,0.00019007,2]
[368722559,1751326247079,-460.0,0.00019007,2]
[368722561,1751326247089,-460.0,0.00019009,2]
[368722563,1751326247099,-460.0,0.00019009,2]
[368722565,1751326247109,-460.0,0.00019009,2]
[368722567,1751326247119,-460.0,0.00019009,2]
[368722569,1751326247129,-460.0,0.00019009,2]
[368722571,1751326247139,-460.0,0.00019009,2]
[368722573,1751326247148,-460.0,0.00019009,2]
[368722575,1751326247157,-460.0,0.00019009,2]
[368722577,1751326247167,-460.0,0.00019009,2]
[368722579,1751326247177,-460.0,0.00019009,2]
[368722581,1751326247187,-460.0,0.00019009,2]
[368722583,1751326247197,-460.0,0.00019009,2]
[368722585,1751326247206,-460.0,0.00019009,2]
[368722587,1751326247216,-500.68258744,0.00019009,2]
[368722589,1751326247226,-460.31465847,0.00019009,2]
[368722591,1751326247236,-460.0,0.00019009,2]
[368722593,1751326247246,-460.0,0.00019009,2]
[368722594,1751326247255,-460.0,0.00019009,2]
[368722595,1751326247265,-460.0,0.00019009,2]
[368722596,1751326247274,-460.0,0.00019009,2]
[368722597,1751326247284,-460.0,0.00019009,2]
[368722598,1751326247294,-460.0,0.00019009,2]
[368722599,1751326247304,-460.0,0.00019009,2]
[368722600,1751326247315,-460.0,0.00019009,2]
[368722602,1751326247325,-460.0,0.00019009,2]
[368722604,1751326247335,-460.0,0.00019009,2]
[368722606,1751326247344,-460.0,0.00019009,2]
[368722608,1751326247353,-460.0,0.00019009,2]
[368722609,1751326247363,-460.0,0.00019009,2]
[368722610,1751326247373,-460.0,0.00019009,2]
[368722611,1751326247382,-460.0,0.00019009,2]
[368722612,1751326247392,-460.0,0.00019009,2]
[368722613,1751326247402,-460.0,0.00019009,2]
[368722614,1751326247412,-460.0,0.00019009,2]
[368722615,1751326247422,-460.0,0.00019009,2]
[368722616,1751326247432,-460.0,0.00019009,2]
[368722617,1751326247442,-460.0,0.00019009,2]
[368722618,1751326247451,-382.22937272,0.00019009,2]
[368722619,1751326247461,-460.0,0.00019009,2]
[368722620,1751326247471,-460.0,0.00019009,2]
[368722621,1751326247481,-460.0,0.00019009,2]
[368722622,1751326247492,-460.0,0.00019009,2]
[368722623,1751326247502,-460.0,0.00019009,2]
[368722624,1751326247512,-460.0,0.00019009,2]
[368722625,1751326247523,-460.0,0.00019009,2]
[368722626,1751326247532,-460.0,0.00019009,2]
[368722627,1751326247542,-460.0,0.00019009,2]
[368722628,1751326247552,-272.97621749,0.00019009,2]
[368722629,1751326247562,-50.36061715,0.00019009,2]
[368722630,1751326247577,-409.63938285,0.00019009,2]
[368722631,1751326247586,-460.0,0.00019009,2]
[368722632,1751326247598,-460.0,0.00019009,2]
[368722634,1751326247608,-460.0,0.00019009,2]
[368722635,1751326247618,-460.0,0.00019009,2]
[368722636,1751326247627,-460.0,0.00019009,2]
[368722637,1751326247637,-607.5231453,0.00019009,2]
[368722638,1751326247646,-460.0,0.00019009,2]
[368722639,1751326247656,-460.0,0.00019009,2]
[368722640,1751326247667,-460.0,0.00019009,2]
[368722641,1751326247676,-460.0,0.00019009,2]
[368722642,1751326247686,-460.0,0.00019009,2]
[368722643,1751326247696,-460.0,0.00019009,2]
[368722644,1751326247707,-460.0,0.00019009,2]
[368722645,1751326247718,-460.0,0.00019009,2]
[368722646,1751326247728,-460.0,0.00019009,2]
[368722647,1751326247737,-460.0,0.00019009,2]
[368722648,1751326247747,-460.0,0.00019009,2]
[368722649,1751326247756,-460.0,0.00019009,2]
[368722650,1751326247766,-460.0,0.00019009,2]
[368722651,1751326247775,-460.0,0.00019009,2]
[368722652,1751326247786,-460.0,0.00019009,2]